[Event "2nd Kalyan Dombivali 2019"]
[Site "Kalyan"]
[Date "2019.02.02"]
[Round "9"]
[White "Awade Pradeep"]
[Black "Satkar, Chirag"]
[Result "0-1"]
[ECO "A05"]
[WhiteElo "1538"]
[BlackElo "2071"]
[Annotator "NA RC"]
[PlyCount "100"]
[EventDate "2019.01.28"]
[EventType "swiss"]
[EventRounds "10"]
[EventCountry "IND"]
[SourceTitle "playchess.com"]
[Source "ChessBase"]
[SourceQuality "1"]
[TimeControl "5400+30"]

{[%evp 16,77,-33,-70,-50,-94,-13,-22,-16,-26,-19,-24,-19,-47,-54,-59,-47,-28,-34,-43,32767,-61,-92,32767,-83,-53,-66,32767,-2,-39,-38,32767,-68,-107,-101,-119,-110,-121,32767,-128,-124,-123,-117,-161,-161,-159,32767,32767,32767,-191,-200,32767,32767,32767,32767,32767,-299,32767,32767,32767,32767,-303,32767,-304]} 1. Nf3 {[%emt 0:00:07]} Nf6 {[%emt 0:10:24]} 2. g3 {[%emt 0:00:32]} g6 {[%emt 0:02:15]} 3. Bg2 {[%emt 0:00:02]} Bg7 {[%emt 0:00:16]} 4. O-O {[%emt 0:00:10]} O-O {[%emt 0:00:26]} 5. d3 {[%emt 0:00:13]} c5 {[%emt 0:04:06]} 6. Nc3 {[%emt 0:01:38] A05: Réti Opening: 1 Nf3 Nf6} (6. c4 Nc6 7. Nc3 a6 8. d4 cxd4 9. Nxd4 Nxd4 10. Qxd4 d6 11. Qh4 Rb8 12. Bg5 Be6 13. Rfd1 Qb6 14. Na4 Qa5 15. b3 b5 {1-0 (89) Onischuk,V (2637)-Vovk,A (2634) Zhitomir 2017}) 6... Nc6 {[%emt 0:02:04]} 7. Nh4 {[%emt 0:04:21]} d5 {[%emt 0:02:42]} 8. h3 $146 {[%emt 0:02:19]} ({Predecessor:} 8. Bg5 d4 9. Bxf6 exf6 10. Na4 Qd6 11. c4 f5 12. Qd2 Bd7 13. b3 Rae8 {0-1 (43) Weindl,A (2380)-Schaufelberger,H (2300) Biel 1990}) 8... b6 {[%emt 0:14:51]} 9. Rb1 {[%emt 0:07:04]} Bb7 {[%emt 0:01:11]} 10. Bg5 {[%emt 0:00:24]} ({White should play} 10. e4 $15) 10... h6 {[%emt 0:14:02]} (10... d4 $17 11. Nb5 a6) 11. Bxf6 {[%emt 0:01:30]} Bxf6 {[%emt 0:00:53]} 12. Nxd5 {[%emt 0:11:02]} Bxh4 {[%emt 0:01:20]} 13. gxh4 {[%emt 0:01:43]} e6 {[%emt 0:00:51]} 14. Nc3 {[%emt 0:00:13]} Qxh4 {[%emt 0:00:22]} 15. e3 {[%emt 0:00:29]} Rad8 {[%emt 0:02:26]} 16. Qg4 {[%emt 0:00:44]} Qe7 {[%emt 0:05:14]} 17. f4 {[%emt 0:00:29]} Kh7 {[%emt 0:02:12]} 18. a3 {[%emt 0:04:02]} f5 {[%emt 0:04:55]} 19. Qg3 {[%emt 0:02:08] [#]} g5 $1 {[%emt 0:01:09]} 20. Kh2 {[%emt 0:07:59]} Rg8 {[%emt 0:01:43]} 21. Rg1 {[%emt 0:00:19]} gxf4 {[%emt 0:04:09]} (21... Rg7 $15) 22. Qxf4 {[%emt 0:00:42]} Rg5 $1 {[%emt 0:06:04]} 23. Bxc6 {[%emt 0:07:42]} Bxc6 {[%emt 0:00:19]} 24. Rxg5 {[%emt 0:02:33]} hxg5 {[%emt 0:00:22]} 25. Qe5 {[%emt 0:00:26]} Kg6 {[%emt 0:05:14]} 26. Rg1 {[%emt 0:00:54]} Qf6 {[%emt 0:01:41]} 27. Qxf6+ {[%emt 0:04:34]} Kxf6 {[%emt 0:00:01]} 28. Kg3 {[%emt 0:00:51]} Rh8 {[%emt 0:01:38]} 29. Rf1 {[%emt 0:01:04] [#]} e5 $1 {[%emt 0:01:23]} 30. e4 {[%emt 0:06:43]} f4+ {[%emt 0:00:31]} 31. Kg2 {[%emt 0:00:23]} Ke6 {[%emt 0:04:06]} 32. Ne2 {[%emt 0:08:08] [#]} (32. b3 $17) 32... c4 $19 {[%emt 0:01:13]} 33. Ng1 {[%emt 0:02:21]} cxd3 {[%emt 0:00:32]} 34. cxd3 {[%emt 0:00:01]} Rd8 {[%emt 0:01:42]} 35. Nf3 {[%emt 0:00:04]} Rxd3 {[%emt 0:02:10]} 36. Nxg5+ {[%emt 0:00:03]} Kf6 {[%emt 0:00:09]} 37. h4 {[%emt 0:00:12]} Re3 {[%emt 0:00:33]} 38. Rc1 {[%emt 0:03:21]} Bxe4+ {[%emt 0:00:36]} 39. Nxe4+ {[%emt 0:00:16]} Rxe4 {[%emt 0:00:01]} 40. Rc7 {[%emt 0:01:39]} Re2+ {[%emt 0:01:36]} 41. Kf3 {[%emt 0:00:09]} Rxb2 {[%emt 0:00:34]} 42. Rxa7 {[%emt 0:00:07]} Rb3+ {[%emt 0:00:31]} 43. Kf2 {[%emt 0:01:34]} Kf5 {[%emt 0:00:35]} 44. a4 {[%emt 0:00:47]} Rb2+ {[%emt 0:00:36]} 45. Kf1 {[%emt 0:00:26]} e4 {[%emt 0:00:57]} 46. a5 {[%emt 0:02:39]} bxa5 {[%emt 0:00:27]} 47. Rxa5+ {[%emt 0:00:01]} Kg4 {[%emt 0:00:13]} 48. h5 {[%emt 0:01:40]} Rh2 {[%emt 0:00:36]} 49. Re5 {[%emt 0:00:35]} Rxh5 {[%emt 0:00:28]} 50. Rxe4 {[%emt 0:00:39]} Kf3 {[%emt 0:00:02]} 0-1

[Event "2nd Kalyan Dombivali 2019"]
[Site "Kalyan"]
[Date "2019.02.02"]
[Round "9"]
[White "Pednekar Ayush"]
[Black "Shreyas Ghadi"]
[Result "1/2-1/2"]
[ECO "A46"]
[WhiteElo "1501"]
[BlackElo "1653"]
[Annotator "NA"]
[PlyCount "83"]
[EventDate "2019.01.28"]
[EventType "swiss"]
[EventRounds "10"]
[EventCountry "IND"]
[SourceTitle "playchess.com"]
[Source "ChessBase"]
[SourceQuality "1"]
[TimeControl "5400+30"]

1. d4 {[%emt 0:00:00]} e6 {[%emt 0:00:00]} 2. Nf3 {[%emt 0:00:00]} Nf6 {[%emt 0:00:00]} 3. Bg5 {[%emt 0:00:46]} Be7 {[%emt 0:00:55]} 4. Nbd2 {[%emt 0:02:00]} d5 {[%emt 0:00:19]} 5. e3 {[%emt 0:00:31]} O-O {[%emt 0:00:21]} 6. Bd3 {[%emt 0:00:29]} b6 {[%emt 0:01:21]} 7. Ne5 {[%emt 0:08:34]} h6 {[%emt 0:01:28]} 8. h4 {[%emt 0:03:19]} Bb7 {[%emt 0:04:21]} 9. Bxf6 {[%emt 0:07:03]} Bxf6 {[%emt 0:00:09]} 10. Qh5 {[%emt 0:01:11]} Bxe5 {[%emt 0:11:20]} 11. dxe5 {[%emt 0:00:01]} f5 {[%emt 0:00:02]} 12. g4 {[%emt 0:22:08]} Qe8 {[%emt 0:06:08]} 13. Qxe8 {[%emt 0:00:19]} Rxe8 {[%emt 0:00:01]} 14. gxf5 {[%emt 0:10:13]} exf5 {[%emt 0:01:17]} 15. f4 {[%emt 0:00:32]} Rf8 {[%emt 0:02:35]} 16. Nf1 {[%emt 0:07:39]} Ba6 {[%emt 0:00:52]} 17. Ng3 {[%emt 0:01:20]} Bxd3 {[%emt 0:00:19]} 18. cxd3 {[%emt 0:00:01]} Na6 {[%emt 0:13:40]} 19. Rg1 {[%emt 0:09:26]} Rad8 {[%emt 0:00:28]} 20. Nh5 {[%emt 0:02:54]} Rf7 {[%emt 0:00:44]} 21. Kd2 {[%emt 0:01:38]} Kh7 {[%emt 0:02:57]} 22. d4 {[%emt 0:01:24]} c5 {[%emt 0:03:22]} 23. Rg2 {[%emt 0:00:36]} Nc7 {[%emt 0:00:11]} 24. Rag1 {[%emt 0:04:15]} Ne6 {[%emt 0:00:26]} 25. Rg6 {[%emt 0:01:10]} Re8 {[%emt 0:01:42]} 26. Kd3 {[%emt 0:00:09]} Kh8 {[%emt 0:01:37]} 27. b3 {[%emt 0:01:46]} Kh7 {[%emt 0:01:38]} 28. R1g2 {[%emt 0:02:49]} a6 {[%emt 0:02:21]} 29. Rg1 {[%emt 0:00:08]} Rfe7 {[%emt 0:02:07]} 30. R1g3 {[%emt 0:04:30]} Rf7 {[%emt 0:00:39]} 31. Rg1 {[%emt 0:00:12]} Rfe7 {[%emt 0:00:08]} 32. R1g3 {[%emt 0:00:09]} Rf7 {[%emt 0:00:04]} 33. Rg1 {[%emt 0:00:01]} Rfe7 34. Rxe6 Rxe6 35. Nxg7 Rg8 36. Nxe6 Rxg1 37. dxc5 bxc5 38. Nxc5 Ra1 39. Kd4 Rh1 40. Kxd5 Kg7 41. e6 {Kf7 Ke5+ Ke7 Kxf5} Rxh4 42. Nxa6 1/2-1/2

[Event "2nd Kalyan Dombivali 2019"]
[Site "Kalyan"]
[Date "2019.02.02"]
[Round "9"]
[White "Thube, Nimish"]
[Black "Chhabra Aakash"]
[Result "0-1"]
[ECO "C01"]
[WhiteElo "1462"]
[BlackElo "1619"]
[Annotator "NA RC"]
[PlyCount "80"]
[EventDate "2019.01.28"]
[EventType "swiss"]
[EventRounds "10"]
[EventCountry "IND"]
[SourceTitle "playchess.com"]
[Source "ChessBase"]
[SourceQuality "1"]
[TimeControl "5400+30"]

1. e4 {[%emt 0:00:00]} e6 {[%emt 0:00:00]} 2. d4 {[%emt 0:00:00]} d5 {[%emt 0:00:00]} 3. exd5 {[%emt 0:00:05]} exd5 {[%emt 0:00:00]} 4. Bd3 {[%emt 0:00:36]} Bd6 {[%emt 0:00:35]} 5. c3 {[%emt 0:00:35]} Nf6 {[%emt 0:00:06]} 6. Bg5 {[%emt 0:00:25]} O-O {[%emt 0:00:09]} 7. Ne2 {[%emt 0:00:53]} Bg4 {[%emt 0:01:04]} 8. O-O {[%emt 0:00:24]} Nbd7 {[%emt 0:00:50]} 9. Qc2 {[%emt 0:00:55]} Bxe2 {[%emt 0:01:25]} 10. Bxe2 {[%emt 0:00:30]} c6 {[%emt 0:00:18]} 11. Nd2 {[%emt 0:00:27]} Qc7 {[%emt 0:00:55]} 12. h3 {[%emt 0:01:30]} Rfe8 {[%emt 0:00:43]} 13. Rfe1 {[%emt 0:00:19]} h6 {[%emt 0:00:31]} 14. Be3 {[%emt 0:00:17]} Ne4 {[%emt 0:00:35]} 15. Nxe4 {[%emt 0:03:15]} dxe4 {[%emt 0:00:42]} 16. Qd2 {[%emt 0:03:59]} Rad8 {[%emt 0:08:36]} 17. Bc4 {[%emt 0:01:28]} b5 {[%emt 0:01:30]} 18. Bb3 {[%emt 0:00:26]} Nb6 {[%emt 0:00:28]} 19. Rac1 {[%emt 0:00:24]} Nd5 {[%emt 0:01:22]} 20. c4 {[%emt 0:01:45]} Bb4 {[%emt 0:02:02]} 21. Qc2 {[%emt 0:02:12]} bxc4 {[%emt 0:00:37]} 22. Bxc4 {[%emt 0:04:05]} Bxe1 {[%emt 0:00:08]} 23. Rxe1 {[%emt 0:01:59]} Qd6 {[%emt 0:01:51]} 24. a3 {[%emt 0:01:54]} Kh8 {[%emt 0:00:59]} 25. Bd2 {[%emt 0:08:21]} f5 {[%emt 0:00:50]} 26. Ba5 {[%emt 0:04:53]} Rd7 {[%emt 0:07:55]} 27. Bd2 {[%emt 0:05:49]} Rde7 {[%emt 0:06:52]} 28. Qc1 {[%emt 0:02:04]} Re6 {[%emt 0:02:48]} 29. Qd1 {[%emt 0:11:25]} e3 {[%emt 0:07:27]} 30. Ba5 {[%emt 0:06:26]} exf2+ {[%emt 0:00:50]} 31. Kxf2 {[%emt 0:00:09]} Qf4+ {[%emt 0:00:44]} 32. Kg1 {[%emt 0:00:24]} Rxe1+ {[%emt 0:00:50]} 33. Bxe1 {[%emt 0:00:21]} Rxe1+ {[%emt 0:00:42]} 34. Qxe1 {[%emt 0:01:41]} Qxd4+ {[%emt 0:00:08]} 35. Kh1 {[%emt 0:00:27]} Qxc4 {[%emt 0:00:10]} 36. Qe8+ {[%emt 0:00:12]} Kh7 {[%emt 0:00:06]} 37. Qe6 {[%emt 0:00:10]} Qc1+ {[%emt 0:00:12]} 38. Kh2 {[%emt 0:00:14]} Qf4+ {[%emt 0:00:10]} 39. Kh1 {[%emt 0:00:23]} Qe4 {[%emt 0:00:37]} 40. Qxc6 {[%emt 0:00:17]} Ne3 {[%emt 0:00:12]} 0-1

[Event "2nd Kalyan Dombivali 2019"]
[Site "Kalyan"]
[Date "2019.02.02"]
[Round "9"]
[White "Iyer Arvind"]
[Black "Midilesh MS"]
[Result "1/2-1/2"]
[ECO "B22"]
[WhiteElo "1441"]
[BlackElo "1558"]
[Annotator "NA"]
[PlyCount "104"]
[EventDate "2019.01.28"]
[EventType "swiss"]
[EventRounds "10"]
[EventCountry "IND"]
[SourceTitle "playchess.com"]
[Source "ChessBase"]
[SourceQuality "1"]
[TimeControl "5400+30"]

1. e4 {[%emt 0:06:41]} c5 {[%emt 0:00:07]} 2. c3 {[%emt 0:01:39]} e6 {[%emt 0:00:17]} 3. d4 {[%emt 0:01:34]} cxd4 {[%emt 0:00:18]} 4. cxd4 {[%emt 0:01:09]} d5 {[%emt 0:00:13]} 5. e5 {[%emt 0:00:53]} Nc6 {[%emt 0:00:38]} 6. Nf3 {[%emt 0:01:11]} Bd7 {[%emt 0:00:31]} 7. Bd3 {[%emt 0:00:47]} Qb6 {[%emt 0:02:11]} 8. Bc2 {[%emt 0:01:14]} Rc8 {[%emt 0:22:30]} 9. Nc3 {[%emt 0:02:39]} a6 {[%emt 0:02:39]} 10. O-O {[%emt 0:00:48]} h6 {[%emt 0:20:08]} 11. a3 {[%emt 0:04:41]} Nge7 {[%emt 0:12:24]} 12. Na4 {[%emt 0:03:33]} Qc7 {[%emt 0:00:28]} 13. Be3 {[%emt 0:06:16]} Na5 {[%emt 0:17:53]} 14. Nc5 {[%emt 0:10:47]} Bb5 {[%emt 0:01:07]} 15. Bd3 {[%emt 0:02:08]} Bxd3 16. Qxd3 {[%emt 0:02:56]} Nac6 {[%emt 0:13:58]} 17. Rac1 {[%emt 0:01:15]} Nf5 {[%emt 0:02:17]} 18. Qb3 {[%emt 0:00:38]} Bxc5 {[%emt 0:00:46]} 19. Rxc5 {[%emt 0:00:19]} O-O {[%emt 0:00:33]} 20. Rfc1 {[%emt 0:00:19]} Qd7 {[%emt 0:00:30]} 21. h3 {[%emt 0:00:49]} Rc7 {[%emt 0:00:30]} 22. Qd3 {[%emt 0:00:27]} Rfc8 {[%emt 0:00:29]} 23. g4 Nxe3 {[%emt 0:00:10]} 24. fxe3 {[%emt 0:00:59]} Na5 {[%emt 0:00:51]} 25. b4 {[%emt 0:01:53]} Nc4 {[%emt 0:00:30]} 26. Nd2 {[%emt 0:00:56]} Nxd2 {[%emt 0:00:02]} 27. Qxd2 {[%emt 0:00:04]} b6 {[%emt 0:00:27]} 28. R5c3 {[%emt 0:01:12]} Rc4 {[%emt 0:01:02]} 29. Rxc4 {[%emt 0:03:09]} Rxc4 {[%emt 0:00:15]} 30. Rxc4 {[%emt 0:00:15]} dxc4 {[%emt 0:00:02]} 31. Qc1 {[%emt 0:00:07]} Qd5 {[%emt 0:00:33]} 32. Kf2 {[%emt 0:00:20]} b5 {[%emt 0:00:29]} 33. Qd1 {[%emt 0:00:38]} Qe4 {[%emt 0:01:06]} 34. Qf3 {[%emt 0:00:44]} Qc2+ {[%emt 0:00:32]} 35. Kg3 {[%emt 0:00:07]} Qc1 {[%emt 0:00:33]} 36. Qa8+ {[%emt 0:00:18]} Kh7 {[%emt 0:00:14]} 37. Qe4+ {[%emt 0:01:11]} g6 {[%emt 0:00:28]} 38. Kf2 {[%emt 0:07:00]} Qd2+ {[%emt 0:00:37]} 39. Kf1 {[%emt 0:00:28]} Qd1+ {[%emt 0:00:37]} 40. Kf2 {[%emt 0:00:11]} Qd2+ {[%emt 0:00:28]} 41. Kf1 {[%emt 0:00:04]} Qd1+ {[%emt 0:00:32]} 42. Kf2 Qd2+ 43. Kf1 c3 44. Qf3 Kg8 45. Qa8+ Kg7 46. Qf3 Kg8 47. Qf6 c2 48. Qd8+ Kh7 49. Qa8 Kg7 50. Qf3 Kh7 51. Qf6 Kg8 52. Qd8+ Kh7 1/2-1/2

[Event "2nd Kalyan Dombivali 2019"]
[Site "Kalyan"]
[Date "2019.02.02"]
[Round "9"]
[White "Soni Deepak R"]
[Black "Govind Prabhu Mah"]
[Result "1-0"]
[ECO "A45"]
[WhiteElo "1425"]
[BlackElo "1601"]
[Annotator "NA RC"]
[PlyCount "94"]
[EventDate "2019.01.28"]
[EventType "swiss"]
[EventRounds "10"]
[EventCountry "IND"]
[SourceTitle "playchess.com"]
[Source "ChessBase"]
[SourceQuality "1"]
[TimeControl "5400+30"]

1. d4 {[%emt 0:24:46]} Nf6 {[%emt 0:05:25]} 2. Bf4 {[%emt 0:00:07]} b6 {[%emt 0:01:48]} 3. Nf3 {[%emt 0:00:09]} Bb7 {[%emt 0:00:01]} 4. e3 {[%emt 0:00:15]} e6 {[%emt 0:00:08]} 5. Nbd2 {[%emt 0:00:26]} Be7 {[%emt 0:00:08]} 6. Bd3 {[%emt 0:00:38]} d6 {[%emt 0:00:11]} 7. h3 {[%emt 0:02:21]} Nbd7 {[%emt 0:00:13]} 8. O-O {[%emt 0:00:37]} h6 {[%emt 0:01:34]} 9. Bh2 {[%emt 0:01:08]} g5 {[%emt 0:01:55]} 10. e4 {[%emt 0:09:42]} g4 {[%emt 0:01:19]} 11. Ne1 {[%emt 0:00:53]} gxh3 {[%emt 0:00:22]} 12. gxh3 {[%emt 0:00:02]} Nf8 {[%emt 0:06:28]} 13. Qe2 {[%emt 0:07:00]} Qd7 {[%emt 0:01:35]} 14. f4 {[%emt 0:07:35]} O-O-O {[%emt 0:21:49]} 15. Ba6 {[%emt 0:02:43]} Rg8+ {[%emt 0:08:12]} 16. Kh1 {[%emt 0:01:32]} e5 {[%emt 0:05:35]} 17. f5 {[%emt 0:02:13]} exd4 {[%emt 0:01:06]} 18. a4 {[%emt 0:01:54]} Kb8 {[%emt 0:05:58]} 19. Bxb7 {[%emt 0:00:14]} Kxb7 {[%emt 0:00:02]} 20. a5 {[%emt 0:00:27]} b5 {[%emt 0:02:51]} 21. a6+ {[%emt 0:01:12]} Ka8 {[%emt 0:00:43]} 22. Qf3 {[%emt 0:06:27]} Qc6 {[%emt 0:01:20]} 23. Nd3 {[%emt 0:00:55]} d5 {[%emt 0:03:40]} 24. e5 {[%emt 0:02:49]} Ne4 {[%emt 0:00:09]} 25. Nb3 {[%emt 0:02:37]} Qxc2 {[%emt 0:05:15]} 26. f6 {[%emt 0:13:47]} Bxf6 {[%emt 0:03:54]} 27. exf6 {[%emt 0:02:14]} Qxb3 {[%emt 0:00:30]} 28. Ra3 {[%emt 0:00:37]} Qc2 {[%emt 0:01:10]} 29. Rc1 {[%emt 0:01:26]} Qd2 {[%emt 0:04:22]} 30. Bf4 {[%emt 0:00:35]} Ng3+ {[%emt 0:08:48]} 31. Bxg3 {[%emt 0:00:22]} Ne6 {[%emt 0:00:16]} 32. Bxc7 {[%emt 0:02:50]} Rd7 {[%emt 0:02:58]} 33. Ba5 {[%emt 0:03:13]} Qe3 {[%emt 0:01:02]} 34. Qxe3 {[%emt 0:00:16]} dxe3 {[%emt 0:00:02]} 35. Ne5 {[%emt 0:00:17]} Rd6 {[%emt 0:00:29]} 36. Nxf7 {[%emt 0:00:39]} Rxa6 {[%emt 0:00:10]} 37. Rxe3 {[%emt 0:01:23]} d4 {[%emt 0:00:56]} 38. Re5 {[%emt 0:00:57]} Rf8 {[%emt 0:00:57]} 39. Nxh6 {[%emt 0:00:44]} Rxf6 {[%emt 0:00:24]} 40. Ng4 {[%emt 0:00:32]} Rf8 {[%emt 0:00:32]} 41. Rxb5 {[%emt 0:00:32]} Rb8 {[%emt 0:00:40]} 42. Rxb8+ {[%emt 0:00:20]} Kxb8 {[%emt 0:00:01]} 43. Be1 {[%emt 0:00:29]} Ra2 {[%emt 0:00:26]} 44. Rb1 {[%emt 0:00:42]} Kb7 {[%emt 0:00:09]} 45. h4 {[%emt 0:00:41]} Kc6 {[%emt 0:00:24]} 46. h5 {[%emt 0:00:16]} Ra5 {[%emt 0:00:27]} 47. Bxa5 {[%emt 0:00:03]} Kd5 1-0

[Event "2nd Kalyan Dombivali 2019"]
[Site "Kalyan"]
[Date "2019.02.02"]
[Round "9"]
[White "Bagwe Suneet"]
[Black "Nehete Akshay S"]
[Result "0-1"]
[ECO "B07"]
[WhiteElo "1305"]
[BlackElo "1788"]
[Annotator "NA"]
[PlyCount "44"]
[EventDate "2019.01.28"]
[EventType "swiss"]
[EventRounds "10"]
[EventCountry "IND"]
[SourceTitle "playchess.com"]
[Source "ChessBase"]
[SourceQuality "1"]
[TimeControl "5400+30"]

1. e4 {[%emt 0:00:00]} d6 {[%emt 0:00:53]} 2. d4 {[%emt 0:00:00]} Nf6 {[%emt 0:00:05]} 3. Nc3 {[%emt 0:00:00]} g6 {[%emt 0:00:10]} 4. Be3 {[%emt 0:00:48]} Bg7 {[%emt 0:03:08]} 5. f3 {[%emt 0:00:53]} O-O {[%emt 0:19:58]} 6. Qd2 {[%emt 0:04:24]} Re8 {[%emt 0:18:19]} 7. O-O-O {[%emt 0:12:54]} c6 {[%emt 0:00:31]} 8. h4 {[%emt 0:05:53]} b5 {[%emt 0:01:05]} 9. Bd3 {[%emt 0:10:47]} Qa5 {[%emt 0:09:56]} 10. Kb1 {[%emt 0:09:11]} b4 {[%emt 0:08:34]} 11. Nce2 {[%emt 0:00:10]} Ba6 {[%emt 0:01:57]} 12. Bxa6 {[%emt 0:17:38]} Nxa6 {[%emt 0:00:20]} 13. h5 {[%emt 0:00:59]} c5 {[%emt 0:13:22]} 14. hxg6 {[%emt 0:08:41]} hxg6 {[%emt 0:00:07]} 15. Bh6 {[%emt 0:01:41]} Bh8 {[%emt 0:00:57]} 16. g4 {[%emt 0:01:02]} c4 {[%emt 0:04:19]} 17. Ng3 {[%emt 0:02:36]} c3 {[%emt 0:03:12]} 18. Qh2 Rac8 {[%emt 0:05:16]} 19. Bf4 {[%emt 0:16:27]} Bg7 {[%emt 0:00:31]} 20. e5 {[%emt 0:00:09]} b3 {[%emt 0:00:37]} 21. cxb3 {[%emt 0:05:31]} c2+ {[%emt 0:00:13]} 22. Kc1 {[%emt 0:00:40]} Nb4 {[%emt 0:00:58]} 0-1

[Event "2nd Kalyan Dombivali 2019"]
[Site "Kalyan"]
[Date "2019.02.03"]
[Round "10"]
[White "Joshi, Nikhil C."]
[Black "Pawaar Sohum"]
[Result "1/2-1/2"]
[ECO "A46"]
[WhiteElo "2088"]
[BlackElo "1359"]
[Annotator "NA RC"]
[PlyCount "113"]
[EventDate "2019.01.28"]
[EventType "swiss"]
[EventRounds "10"]
[EventCountry "IND"]
[SourceTitle "playchess.com"]
[Source "ChessBase"]
[SourceQuality "1"]
[TimeControl "5400+30"]

{[%evp 8,113,6,0,4,0,41,20,31,31,44,0,35,32767,39,25,32767,19,120,115,148,144,202,154,188,145,225,201,188,183,230,208,190,174,32767,225,231,216,258,189,189,185,189,174,190,32767,32767,32767,32767,135,150,143,196,161,171,175,188,171,165,166,182,140,163,136,165,131,164,153,156,154,171,49,52,47,61,39,61,54,95,127,108,88,124,129,135,124,129,128,129,124,390,339,275,116,32767,0,245,32767,32767,32767,32767,32767,208,34,39,21,18,0]} 1. d4 {[%emt 0:02:44]} Nf6 {[%emt 0:00:00]} 2. Nf3 {[%emt 0:00:19]} c5 {[%emt 0:02:42]} 3. c3 {[%emt 0:01:04]} e6 {[%emt 0:01:03]} 4. e3 {[%emt 0:00:35]} Nc6 {[%emt 0:00:51]} 5. Nbd2 {[%emt 0:00:22]} d5 {[%emt 0:01:01]} 6. Bd3 {[%emt 0:00:11]} cxd4 {[%emt 0:03:02]} 7. exd4 {[%emt 0:00:10]} Bd6 {[%emt 0:00:32]} 8. O-O {[%emt 0:00:10]} O-O {[%emt 0:00:29]} 9. Qe2 {[%emt 0:00:06]} Qc7 {[%emt 0:03:05]} 10. Re1 {[%emt 0:01:40]} Nd7 {[%emt 0:02:07]} 11. Nf1 {[%emt 0:02:42]} Re8 {[%emt 0:04:04]} 12. Bc2 {[%emt 0:14:37]} f5 {[%emt 0:08:03]} (12... a5 $11) 13. Bxf5 $1 {[%emt 0:08:34] Pin} Nf6 {[%emt 0:02:20]} 14. Bc2 {[%emt 0:01:11]} Bd7 {[%emt 0:03:56]} 15. Be3 {[%emt 0:00:35]} Rac8 {[%emt 0:02:13]} 16. Rac1 {[%emt 0:09:29]} Qb6 {[%emt 0:00:54]} (16... e5 $16) 17. Rb1 {[%emt 0:00:53]} Na5 {[%emt 0:00:38]} 18. Ne5 {[%emt 0:01:40]} Nc4 {[%emt 0:01:45]} 19. Nxc4 {[%emt 0:01:40]} Rxc4 {[%emt 0:00:12]} 20. Nd2 {[%emt 0:00:50]} Rc7 {[%emt 0:00:34]} 21. Nf3 {[%emt 0:00:26]} Rf8 {[%emt 0:08:15]} 22. Ne5 {[%emt 0:01:01]} Bc8 {[%emt 0:00:09]} 23. Qd3 {[%emt 0:03:52]} Qa6 {[%emt 0:04:06]} 24. Qxa6 {[%emt 0:01:48]} bxa6 {[%emt 0:00:02]} 25. Nf3 {[%emt 0:01:21]} Ng4 {[%emt 0:02:19]} 26. h3 {[%emt 0:00:26]} Nxe3 {[%emt 0:00:09]} 27. Rxe3 {[%emt 0:00:02]} h6 {[%emt 0:00:25]} 28. Bb3 {[%emt 0:01:14]} Rf6 {[%emt 0:05:35]} 29. Ne5 {[%emt 0:01:02]} Rf4 {[%emt 0:04:43]} (29... Bxe5 $16 30. Rxe5 Bd7) 30. Rbe1 {[%emt 0:02:11]} a5 {[%emt 0:00:43]} 31. Nd3 {[%emt 0:01:09]} Rf6 {[%emt 0:00:20]} 32. Bd1 {[%emt 0:02:00]} g5 {[%emt 0:02:50]} 33. Ba4 {[%emt 0:03:32]} Rcf7 {[%emt 0:06:46]} 34. R3e2 {[%emt 0:00:16]} Rc7 {[%emt 0:00:30]} 35. Nc1 {[%emt 0:01:13]} Kf7 {[%emt 0:03:11]} 36. Bb5 {[%emt 0:01:19]} Bd7 {[%emt 0:01:06]} 37. Bxd7 {[%emt 0:00:26]} Rxd7 {[%emt 0:00:01]} 38. Nd3 {[%emt 0:03:08]} Rb7 {[%emt 0:01:29]} 39. Ne5+ {[%emt 0:00:13]} ({White should play} 39. b3 $18) 39... Bxe5 $1 {[%emt 0:00:19]} 40. dxe5 {[%emt 0:00:07]} Rf4 {[%emt 0:01:26]} 41. Rd1 {[%emt 0:00:51]} Rc4 {[%emt 0:02:28]} 42. Rd4 {[%emt 0:01:30]} Rbc7 {[%emt 0:02:43]} 43. Rxc4 {[%emt 0:01:27]} Rxc4 {[%emt 0:00:15]} 44. f3 {[%emt 0:00:09]} a4 {[%emt 0:01:26] [#]} 45. a3 $1 {[%emt 0:01:19]} Kg6 {[%emt 0:01:46] [#]} 46. g4 $1 {[%emt 0:00:04]} a5 {[%emt 0:00:54]} 47. Rd2 {[%emt 0:02:06]} Rf4 {[%emt 0:01:45]} 48. Kf2 {[%emt 0:00:22]} h5 $2 {[%emt 0:00:57]} (48... Rf8 $16 49. Ke3 Rb8) 49. Ke3 {[%emt 0:00:37]} Rf7 $1 {[%emt 0:02:33] [#]} 50. Rf2 {[%emt 0:04:36]} Rf4 {[%emt 0:00:45]} 51. Rd2 {[%emt 0:01:44]} (51. Rf1 $16) 51... Rf7 {[%emt 0:00:18] [#]} 52. Rd4 $1 $18 {[%emt 0:01:44] is the precise move to win.} Rb7 {[%emt 0:01:45]} 53. Rxa4 {[%emt 0:01:07]} Rxb2 {[%emt 0:00:09]} 54. gxh5+ {[%emt 0:00:19]} Kf5 {[%emt 0:03:16]} (54... Kxh5 $16 55. Rxa5 Kg6) 55. Rxa5 $2 {[%emt 0:00:11]} (55. h6 $18 Rb7 56. h4 (56. Rxa5 Rh7 $14)) 55... Rh2 {[%emt 0:02:45]} 56. Ra8 {[%emt 0:07:32]} Rxh3 {[%emt 0:00:41]} 57. Rg8 $11 {[%emt 0:02:11]} 1/2-1/2